bitfinex/quotes_SOLUSD_20230905
["timestamp","ask_amount","ask_price","bid_price","bid_amount"]
[1693918354612,443.56256185,19.726,19.706,33.491]
[1693918354816,71.11513413,19.727,19.706,7.916]
[1693918354817,7.91,19.72,19.706,7.916]
[1693918355019,33.467,19.72,19.706,7.916]
[1693918355733,7.911,19.718,19.703,25.579]
[1693918355934,7.911,19.718,19.706,7.916]
[1693918356305,20.0,19.717,19.704,7.916]
[1693918356505,20.0,19.717,19.701,7.917]
[1693918356506,7.914,19.711,19.701,7.917]
[1693918356713,7.914,19.711,19.699,7.918]
[1693918357015,7.915,19.709,19.697,7.919]
[1693918357816,90.4726,19.714,19.697,7.919]
[1693918358128,7.914,19.711,19.697,7.919]
[1693918358320,55.0,19.71,19.697,7.919]
[1693918358520,90.4726,19.714,19.697,7.919]
[1693918359526,7.914,19.711,19.697,7.919]
[1693918359731,7.913,19.713,19.697,7.919]
[1693918359925,92.99659897,19.72,19.697,7.919]
[1693918359926,25.56,19.719,19.698,20.0]
[1693918360135,7.911,19.718,19.704,7.917]
[1693918360310,102.7167,19.718,19.704,7.917]
[1693918361816,158.5497,19.718,19.704,7.917]
[1693918362625,158.5497,19.718,19.696,15.31522842]
[1693918362927,7.914,19.711,19.701,7.918]
[1693918363124,33.483,19.711,19.699,7.918]
[1693918363425,55.0,19.71,19.695,7.92]
[1693918363608,7.915,19.708,19.697,7.919]
[1693918363804,7.915,19.708,19.692,25.592]
[1693918364010,7.917,19.703,19.693,20.0]
[1693918364315,7.917,19.703,19.693,27.921]
[1693918365123,90.8964,19.709,19.693,27.921]
[1693918365312,98.8114,19.709,19.693,27.921]
[1693918365509,7.915,19.709,19.693,27.921]
[1693918365706,7.914,19.711,19.693,27.921]
[1693918365919,7.914,19.711,19.693,53.47639741]
[1693918366137,126.654,19.712,19.693,53.47639741]
[1693918366423,134.568,19.712,19.693,53.47639741]
[1693918367228,190.371,19.712,19.693,53.47639741]
[1693918367412,55.0,19.711,19.693,27.921]
[1693918367611,7.916,19.706,19.693,27.921]
[1693918368119,33.491,19.706,19.693,27.921]
[1693918368424,55.0,19.705,19.69,52.29]
[1693918368612,7.918,19.7,19.689,7.922]
[1693918369017,62.918,19.7,19.683,25.55539741]
[1693918369323,62.918,19.7,19.689,7.922]
[1693918369522,7.918,19.7,19.689,7.922]
[1693918369822,7.918,19.701,19.689,7.922]
[1693918370725,81.481,19.702,19.689,7.922]
[1693918371119,118.3499,19.704,19.689,7.922]
[1693918371319,7.918,19.702,19.689,7.922]
[1693918372311,63.797,19.702,19.689,7.922]
[1693918373028,55.879,19.702,19.689,7.922]
[1693918373230,55.879,19.702,19.689,63.79]
[1693918373534,92.7719,19.704,19.689,63.79]
[1693918373727,92.7719,19.704,19.694,7.921]
[1693918373922,7.917,19.705,19.694,7.921]
[1693918374130,122.3437,19.704,19.694,7.921]
[1693918374319,7.918,19.702,19.688,25.599]
[1693918374523,7.918,19.702,19.689,20.0]
[1693918375129,7.918,19.702,19.693,7.921]
[1693918375629,130.2607,19.704,19.693,7.921]
[1693918378233,130.2607,19.704,19.691,7.922]
[1693918378431,55.0,19.703,19.691,7.922]
[1693918378729,7.918,19.7,19.691,7.922]
[1693918379316,7.918,19.702,19.691,7.922]
[1693918379920,7.918,19.702,19.689,7.922]
[1693918381227,7.92,19.696,19.684,7.924]
[1693918382230,33.526,19.696,19.684,7.924]
[1693918387735,55.0,19.695,19.684,7.924]
[1693918388031,7.922,19.692,19.684,7.924]
[1693918388233,7.922,19.692,19.675,25.615]
[1693918388440,55.0,19.691,19.679,7.926]
[1693918388630,7.923,19.689,19.679,7.926]
[1693918389335,25.594,19.692,19.679,7.926]
[1693918389545,92.633,19.695,19.679,37.40279171]
[1693918389717,92.633,19.695,19.68,80.55539741]
[1693918390030,100.553,19.695,19.684,7.925]
[1693918390536,7.92,19.695,19.684,7.925]
[1693918391145,7.92,19.695,19.682,7.925]
[1693918391339,55.0,19.694,19.683,20.0]
[1693918391541,7.922,19.691,19.683,27.925]
[1693918392038,7.922,19.691,19.678,7.927]
[1693918392039,33.517,19.691,19.678,7.927]
[1693918392340,55.0,19.69,19.679,2.96035436]
[1693918392522,7.924,19.687,19.677,3.26488868]
[1693918392845,7.924,19.687,19.677,11.19188868]
[1693918393555,33.542,19.687,19.677,11.19188868]
[1693918393731,33.542,19.687,19.677,3.26488868]
[1693918393923,7.925,19.684,19.676,3.26488868]
[1693918394128,7.925,19.684,19.676,11.19288868]
[1693918394537,1.02321606,19.698,19.677,25.55539741]
[1693918394744,7.92,19.697,19.684,33.529]
[1693918394940,7.92,19.697,19.685,3.9213943]
[1693918395136,7.92,19.697,19.688,7.923]
[1693918395338,63.808,19.697,19.688,7.923]
[1693918395742,96.6023,19.707,19.688,7.923]
[1693918396047,1.02321606,19.706,19.69,52.29]
[1693918396344,96.6023,19.707,19.695,89.361]
[1693918396847,417.061,19.717,19.695,89.361]
[1693918397056,7.914,19.712,19.696,80.55539741]
[1693918397378,7.914,19.712,19.7,7.918]
[1693918399246,63.717,19.712,19.695,25.59]
[1693918399950,55.0,19.711,19.695,25.59]
[1693918400149,62.914,19.711,19.697,7.919]
[1693918400950,7.914,19.711,19.697,7.919]
[1693918402751,7.915,19.708,19.697,7.919]
[1693918404042,55.0,19.71,19.687,2.92313392]
[1693918404043,7.917,19.703,19.687,2.92313392]
[1693918404245,7.917,19.703,19.686,81.475]
[1693918404246,63.746,19.703,19.686,7.924]
[1693918404451,7.919,19.698,19.687,3.9213943]
[1693918404634,7.919,19.698,19.688,7.923]
[1693918404834,7.919,19.7,19.688,7.923]
[1693918405563,33.521,19.7,19.688,7.923]
[1693918405737,25.602,19.7,19.688,7.923]
[1693918405939,25.602,19.7,19.688,33.522]
[1693918406343,33.52,19.7,19.688,33.522]
[1693918406656,33.52,19.7,19.688,7.923]
[1693918407434,25.602,19.7,19.688,7.923]
[1693918409255,33.52,19.7,19.688,7.923]
[1693918409881,25.602,19.7,19.688,7.923]
[1693918410449,26.53076062,19.705,19.688,7.923]
[1693918410635,980.6,19.727,19.688,7.923]
[1693918410636,124.5836,19.723,19.69,354.58]
[1693918410837,7.91,19.721,19.701,89.334]
[1693918411148,47.96994464,19.723,19.708,33.487]
[1693918411338,0.96917206,19.726,19.708,33.487]
[1693918411552,99.0296,19.721,19.708,33.487]
[1693918412045,106.9396,19.721,19.708,7.915]
[1693918413556,99.0296,19.721,19.708,7.915]
[1693918413861,106.9396,19.721,19.708,7.915]
[1693918414153,106.9396,19.721,19.702,25.55539741]
[1693918414471,106.9396,19.721,19.706,7.916]
[1693918414754,55.95569534,19.72,19.706,7.916]
[1693918414939,55.0,19.72,19.706,7.916]
[1693918415135,62.911,19.72,19.706,7.916]
[1693918415345,7.911,19.72,19.706,7.916]
[1693918415738,7.91,19.722,19.707,20.0]
[1693918416043,7.91,19.722,19.711,7.914]
[1693918416451,7.91,19.722,19.712,20.0]
[1693918416652,7.91,19.722,19.714,7.913]
[1693918417157,7.91,19.722,19.712,27.913]
[1693918417374,7.909,19.723,19.712,53.481]
[1693918417555,55.0,19.722,19.712,27.913]
[1693918417751,7.909,19.723,19.712,53.481]
[1693918418659,7.909,19.723,19.712,27.913]
[1693918418864,63.666,19.723,19.712,27.913]
[1693918419259,55.0,19.722,19.712,27.913]
[1693918419460,7.91,19.72,19.712,27.913]
[1693918419772,7.91,19.72,19.712,20.0]
[1693918419949,7.91,19.72,19.711,20.0]
[1693918420449,55.0,19.719,19.711,25.414]
[1693918420652,7.91,19.72,19.711,25.414]
[1693918421580,55.0,19.719,19.708,7.915]
[1693918421862,7.912,19.717,19.708,7.915]
[1693918422159,55.0,19.719,19.705,7.916]
[1693918422160,80.56,19.719,19.705,7.916]
[1693918422349,7.912,19.717,19.706,7.916]
[1693918422558,55.0,19.716,19.705,7.916]
[1693918422850,55.0,19.716,19.699,55.84]
[1693918422851,7.912,19.715,19.699,55.84]
[1693918423049,55.0,19.714,19.7,3.55114626]
[1693918423556,7.913,19.713,19.703,7.917]
[1693918423857,110.0,19.714,19.703,7.917]
[1693918423858,55.0,19.712,19.703,7.917]
[1693918424261,55.0,19.713,19.703,33.496]
[1693918424445,55.0,19.714,19.703,33.496]
[1693918425470,7.912,19.717,19.703,33.496]
[1693918425858,53.83931295,19.748,19.703,33.496]
[1693918425859,55.752,19.73,19.704,20.0]
[1693918426072,93.3142,19.724,19.711,89.287]
[1693918426256,93.3142,19.724,19.712,20.0]
[1693918426456,93.3142,19.724,19.715,7.912]
[1693918426667,7.908,19.726,19.715,7.912]
[1693918427567,33.473,19.726,19.715,7.912]
[1693918429064,55.0,19.725,19.7,127.081]
[1693918429267,7.909,19.723,19.708,81.386]
[1693918429452,55.0,19.722,19.708,81.386]
[1693918429762,33.467,19.72,19.708,7.915]
[1693918429970,7.911,19.718,19.708,7.915]
[1693918430158,55.0,19.717,19.708,7.915]
[1693918430560,110.0,19.717,19.708,7.915]
[1693918431064,55.0,19.717,19.708,7.915]
[1693918431965,7.912,19.716,19.706,7.916]
[1693918432159,55.0,19.715,19.701,45.581]
[1693918432357,7.912,19.715,19.705,7.916]
[1693918432769,55.0,19.714,19.705,7.916]
[1693918433873,55.0,19.717,19.705,33.493]
[1693918434966,55.0,19.717,19.705,7.916]
[1693918437670,55.0,19.717,19.705,33.493]
[1693918439183,26.51186876,19.721,19.71,52.16]
[1693918439479,26.51186876,19.721,19.712,7.913]
[1693918439673,82.33786876,19.721,19.712,7.913]
[1693918440572,55.826,19.721,19.712,7.913]
[1693918440775,55.826,19.721,19.71,60.074]
[1693918441276,55.826,19.721,19.71,52.16]
[1693918441570,55.0,19.72,19.71,52.16]
[1693918441777,55.0,19.72,19.704,25.578]
[1693918441981,55.0,19.72,19.708,7.915]
[1693918442277,62.911,19.72,19.708,7.915]
[1693918443270,55.0,19.72,19.708,7.915]
[1693918443477,62.91,19.72,19.708,7.915]
[1693918444570,55.0,19.72,19.708,7.915]
[1693918444770,55.826,19.721,19.708,7.915]
[1693918445281,63.736,19.721,19.708,7.915]
[1693918445868,89.29139741,19.721,19.705,7.916]
[1693918446068,0.66109676,19.72,19.702,25.579]
[1693918446284,7.911,19.718,19.705,7.916]
[1693918446575,7.912,19.715,19.703,27.917]
[1693918446768,55.0,19.714,19.703,27.917]
[1693918447786,110.0,19.714,19.703,27.917]
[1693918448276,206.9473,19.714,19.703,27.917]
[1693918449993,55.0,19.714,19.703,27.917]
[1693918450189,7.908,19.726,19.703,27.917]
[1693918450571,0.62429255,19.725,19.703,39.65761]
[1693918450889,7.908,19.726,19.703,39.65761]
[1693918450890,7.908,19.726,19.703,131.55431]
[1693918451075,186.57406491,19.727,19.703,131.55431]
[1693918451076,8.93121606,19.725,19.703,131.55431]
[1693918452983,7.909,19.722,19.703,131.55431]
[1693918453172,7.909,19.722,19.703,39.65761]
[1693918453698,62.909,19.724,19.703,39.65761]
[1693918453887,0.82178609,19.723,19.703,39.65761]
[1693918454689,62.909,19.724,19.703,39.65761]
[1693918454874,7.909,19.723,19.703,39.65761]
[1693918455071,7.912,19.717,19.703,39.65761]
[1693918455380,55.0,19.716,19.703,39.65761]
[1693918455589,25.552,19.725,19.703,27.917]
[1693918455898,7.91,19.722,19.703,27.917]
[1693918456483,95.4226,19.726,19.703,27.917]
[1693918456794,95.4226,19.723,19.703,39.65761]
[1693918456991,95.4226,19.723,19.704,11.74001]
[1693918457199,95.4226,19.726,19.71,52.16]
[1693918457398,95.4226,19.726,19.714,7.912]
[1693918457692,25.567,19.726,19.714,7.912]
[1693918460496,25.534,19.739,19.72,52.16]
[1693918460796,119.25250912,19.739,19.721,20.0]
[1693918461001,45.55539741,19.738,19.718,25.559]
[1693918461294,45.55539741,19.738,19.716,55.79]
[1693918461295,7.904,19.735,19.719,7.91]
[1693918461499,7.904,19.737,19.719,27.91]
[1693918461687,96.456,19.739,19.719,83.693]
[1693918461887,7.903,19.737,19.719,27.91]
[1693918462700,55.79,19.738,19.725,7.908]
[1693918462889,55.79,19.738,19.725,33.459]
[1693918463092,55.79,19.738,19.725,89.225]
[1693918463302,7.9,19.746,19.732,7.905]
[1693918463901,7.9,19.746,19.73,7.906]
[1693918464099,59.13042151,19.749,19.73,7.906]
[1693918464302,7.9,19.746,19.73,7.906]
[1693918464494,33.45539741,19.746,19.73,7.906]
[1693918464997,89.21739741,19.746,19.73,7.906]
[1693918465203,63.662,19.746,19.725,25.551]
[1693918465404,63.662,19.746,19.727,7.907]
[1693918465589,89.21739741,19.746,19.727,7.907]
[1693918466083,89.21739741,19.746,19.728,2.60419738]
[1693918466282,89.21739741,19.746,19.731,7.906]
[1693918467299,55.762,19.746,19.732,20.0]
[1693918467495,55.762,19.746,19.736,7.904]
[1693918467685,55.762,19.746,19.732,20.0]
[1693918467892,63.662,19.746,19.73,25.544]
[1693918468099,63.662,19.746,19.732,7.905]
[1693918468296,63.662,19.746,19.73,52.16]
[1693918468602,63.662,19.746,19.728,3.05772345]
[1693918469001,55.0,19.745,19.728,3.05772345]
[1693918469191,7.901,19.744,19.731,7.906]
[1693918469393,55.0,19.743,19.731,7.906]
[1693918469602,62.901,19.743,19.727,25.548]
[1693918469793,62.901,19.743,19.729,7.906]
[1693918470292,88.429,19.743,19.723,25.552]
[1693918470602,55.0,19.743,19.729,7.906]
[1693918471220,62.901,19.743,19.729,7.906]
[1693918471704,7.904,19.736,19.724,7.908]
[1693918472215,7.904,19.736,19.725,3.61345814]
[1693918472396,55.0,19.735,19.721,3.61345814]
[1693918472600,7.906,19.731,19.718,7.911]
[1693918472800,7.906,19.731,19.719,3.81334176]
[1693918472995,118.3762,19.734,19.719,11.72334176]
[1693918473200,55.0,19.733,19.719,7.91]
[1693918473403,7.906,19.731,19.71,104.32]
[1693918473622,55.0,19.73,19.716,7.911]
[1693918473908,55.0,19.73,19.711,50.48487911]
[1693918473909,55.0,19.73,19.718,7.911]
[1693918474101,62.906,19.73,19.718,7.911]
[1693918474304,55.0,19.73,19.718,7.911]
[1693918474500,92.8362,19.732,19.718,7.911]
[1693918475009,92.8362,19.732,19.719,4.91687911]
[1693918475010,55.0,19.731,19.719,4.91687911]
[1693918475203,55.0,19.731,19.72,7.91]
[1693918475799,62.906,19.731,19.718,7.911]
[1693918475995,62.906,19.731,19.719,2.58230511]
[1693918476202,55.0,19.731,19.719,10.49230511]
[1693918476510,55.0,19.731,19.719,7.91]
[1693918477214,100.7422,19.732,19.719,7.91]
[1693918477513,55.0,19.731,19.719,7.91]
[1693918479016,62.906,19.731,19.719,7.91]
[1693918479215,7.906,19.731,19.719,7.91]
[1693918479822,55.0,19.73,19.719,7.91]
[1693918480199,62.906,19.73,19.715,25.563]
[1693918480405,62.906,19.73,19.717,7.911]
[1693918480623,62.906,19.73,19.718,3.55628197]
[1693918480815,7.906,19.73,19.719,7.911]
[1693918481115,7.906,19.73,19.72,3.55628197]
[1693918481800,7.906,19.73,19.718,7.911]
[1693918482001,7.906,19.73,19.719,3.58703381]
[1693918482198,7.906,19.73,19.719,11.49703381]
[1693918482403,55.0,19.729,19.715,4.13925229]
[1693918483004,62.907,19.729,19.718,7.911]
[1693918483315,55.0,19.729,19.719,4.13925229]
[1693918483499,62.906,19.73,19.719,4.13925229]
[1693918483819,62.906,19.73,19.717,4.13925229]
[1693918484008,62.906,19.73,19.714,25.565]
[1693918484009,62.906,19.73,19.715,4.18385001]
[1693918484313,118.709,19.73,19.715,4.18385001]
[1693918484699,118.709,19.73,19.716,7.912]
[1693918484905,118.709,19.73,19.717,4.18385001]
[1693918487224,118.709,19.73,19.715,4.18385001]
[1693918487605,118.709,19.73,19.713,4.18385001]
[1693918487915,118.709,19.73,19.713,24.18385001]
[1693918488408,118.709,19.73,19.712,4.18385001]
[1693918489219,118.709,19.73,19.712,12.09685001]
[1693918489428,118.709,19.73,19.713,20.0]
[1693918489722,118.709,19.73,19.714,4.18385001]
[1693918490313,118.709,19.73,19.714,12.09585001]
[1693918491321,118.709,19.73,19.714,4.18385001]
[1693918491911,118.709,19.73,19.714,12.09585001]
[1693918492519,55.803,19.73,19.714,12.09585001]
[1693918492820,134.30550491,19.732,19.714,67.89285001]
[1693918492821,92.8362,19.732,19.714,67.89285001]
[1693918494407,92.8362,19.732,19.72,31.27]
[1693918494616,92.8362,19.732,19.723,7.909]
[1693918494824,92.8362,19.732,19.724,4.18385001]
[1693918495018,92.8362,19.732,19.725,7.908]
[1693918497324,92.8362,19.732,19.727,7.907]
[1693918497621,92.8362,19.732,19.725,2.60319888]
[1693918497825,92.8362,19.732,19.721,3.80315998]
[1693918498030,55.0,19.731,19.724,3.80315998]
[1693918498214,55.0,19.731,19.723,7.909]
[1693918498525,55.0,19.731,19.716,25.562]
[1693918498719,55.0,19.731,19.717,4.06027946]
[1693918499431,55.0,19.731,19.721,7.91]
[1693918499934,55.0,19.731,19.722,4.06027946]
[1693918500132,55.0,19.731,19.723,7.909]
[1693918500343,92.8362,19.732,19.723,7.909]
[1693918500628,92.8362,19.732,19.723,33.462]
[1693918500832,92.8362,19.732,19.72,7.91]
[1693918501130,31.27,19.734,19.721,3.68488961]
[1693918501427,67.70334434,19.737,19.722,4.30597953]
[1693918501428,98.8875,19.733,19.722,4.30597953]
[1693918501627,156.35,19.75,19.722,4.30597953]
[1693918501628,98.8875,19.739,19.727,89.215]
[1693918502130,98.8875,19.739,19.728,4.30597953]
[1693918502327,98.8875,19.739,19.731,7.906]
[1693918502635,98.8875,19.739,19.732,2.61404338]
[1693918502815,98.8875,19.739,19.733,7.905]
[1693918504323,82.23984966,19.745,19.733,7.905]
[1693918504533,123.22659741,19.744,19.733,7.905]
[1693918504919,123.22659741,19.744,19.73,7.906]
[1693918505224,123.22659741,19.744,19.731,7.906]
[1693918505419,55.0,19.743,19.731,7.906]
[1693918505619,25.55539741,19.742,19.729,7.906]
[1693918505818,55.0,19.741,19.729,7.906]
[1693918506028,97.6712,19.744,19.729,7.906]
[1693918506221,55.0,19.741,19.729,7.906]
[1693918506835,55.0,19.741,19.73,2.56767448]
[1693918507020,55.0,19.741,19.732,7.905]
[1693918507523,55.0,19.74,19.732,7.905]
[1693918510118,97.6712,19.744,19.732,7.905]
[1693918510323,55.0,19.743,19.732,7.905]
[1693918510528,97.6712,19.744,19.732,7.905]
[1693918511030,153.4322,19.744,19.732,7.905]
[1693918511244,153.4322,19.744,19.732,63.652]
[1693918511532,56.63184582,19.75,19.738,33.437]
[1693918511716,15.14300202,19.75,19.739,2.78479558]
[1693918511917,40.69839943,19.75,19.739,10.68779558]
[1693918512127,25.55539741,19.749,19.739,2.78479558]
[1693918512329,20.0,19.748,19.739,7.903]
[1693918512533,45.55539741,19.748,19.737,7.903]
[1693918512935,80.55539741,19.747,19.732,2.48562685]
[1693918513239,20.0,19.746,19.732,2.48562685]
[1693918513533,55.0,19.745,19.736,7.904]
[1693918514136,55.0,19.746,19.736,7.904]
[1693918514324,55.0,19.746,19.734,7.904]
[1693918514528,55.0,19.746,19.731,25.543]
[1693918515539,55.0,19.746,19.735,7.904]
[1693918516231,55.0,19.746,19.73,25.543]
[1693918516427,55.0,19.746,19.731,2.58920246]
[1693918517239,55.0,19.746,19.735,7.904]
[1693918518245,55.0,19.746,19.734,7.904]
[1693918519533,54.5,19.746,19.734,7.904]
[1693918522846,54.5,19.746,19.729,25.545]
[1693918523050,80.05539741,19.746,19.731,7.906]
[1693918524336,80.05539741,19.746,19.731,63.655]
[1693918524745,80.05539741,19.746,19.731,7.906]
[1693918527357,25.55539741,19.745,19.731,7.906]
[1693918527646,55.0,19.744,19.731,7.906]
[1693918528054,91.4077,19.743,19.731,7.906]
[1693918528357,55.0,19.742,19.731,7.906]
[1693918529652,110.758,19.742,19.731,7.906]
[1693918532337,26.47641884,19.741,19.731,7.906]
[1693918532649,55.0,19.74,19.731,7.906]
[1693918532843,55.0,19.74,19.717,66.08278076]
[1693918532844,20.0,19.739,19.721,10.59997563]
[1693918533050,45.55539741,19.739,19.721,7.91]
[1693918533257,55.0,19.738,19.721,7.91]
[1693918533451,20.0,19.737,19.721,7.91]
[1693918533650,55.0,19.736,19.722,3.9886666]
[1693918533851,55.0,19.736,19.726,7.908]
[1693918534049,93.9235,19.735,19.726,7.908]
[1693918534357,55.0,19.734,19.726,7.908]
[1693918534853,25.55539741,19.739,19.726,7.908]
[1693918535057,93.9235,19.746,19.732,7.905]
[1693918535257,26.476418,19.744,19.732,7.905]
[1693918538149,26.476418,19.744,19.728,2.7394191]
[1693918538350,26.476418,19.744,19.729,7.906]
[1693918538547,34.377418,19.744,19.729,7.906]
[1693918539449,62.901,19.743,19.729,7.906]
[1693918539859,26.476418,19.744,19.729,7.906]
[1693918540061,41.57809329,19.747,19.734,33.443]
[1693918540246,7.899,19.748,19.734,33.443]
[1693918540444,7.901,19.744,19.732,7.905]
[1693918541255,55.755,19.744,19.724,25.55539741]
[1693918541458,7.901,19.743,19.725,3.98567442]
[1693918541657,7.901,19.743,19.725,7.908]
[1693918541959,7.903,19.739,19.726,7.908]
[1693918542159,62.903,19.738,19.726,7.908]
[1693918542360,7.903,19.738,19.724,7.909]
[1693918542545,55.0,19.737,19.725,4.46193225]
[1693918542749,55.0,19.737,19.727,7.907]
[1693918542970,146.6718,19.737,19.727,7.907]
[1693918543754,91.6718,19.737,19.727,7.907]
[1693918547562,91.6718,19.741,19.727,7.907]
[1693918548068,99.5738,19.741,19.727,7.907]
[1693918548254,55.0,19.74,19.727,7.907]
[1693918549163,62.902,19.74,19.727,7.907]
[1693918549553,94.172,19.74,19.714,56.24481719]
[1693918549869,7.905,19.733,19.718,3.87595815]
[1693918550053,7.905,19.735,19.723,7.909]
[1693918550464,80.535,19.738,19.723,7.909]
[1693918550465,25.55539741,19.739,19.723,63.681]
[1693918550764,97.4141,19.749,19.735,33.441]
[1693918551863,7.898,19.752,19.735,33.441]
[1693918553449,55.0,19.751,19.735,33.441]
[1693918554251,121.577397,19.751,19.735,33.441]
[1693918554449,55.0,19.751,19.735,33.441]
[1693918554666,55.0,19.752,19.735,33.441]
[1693918555669,62.898,19.752,19.735,33.441]
[1693918555857,129.475396,19.752,19.735,33.441]
[1693918556064,66.577396,19.752,19.735,89.179]
[1693918556266,7.897,19.753,19.735,89.179]
[1693918556469,15.38469335,19.757,19.735,89.179]
[1693918556767,7.897,19.753,19.735,33.441]
[1693918557766,55.0,19.752,19.735,33.441]
[1693918558071,62.898,19.752,19.735,33.441]
[1693918558253,62.898,19.752,19.734,7.904]
[1693918558455,118.588,19.752,19.731,28.94717178]
[1693918558659,118.588,19.752,19.732,20.0]
[1693918558957,7.9,19.746,19.733,11.98976518]
[1693918559272,55.0,19.745,19.733,11.98976518]
[1693918560172,93.6771,19.749,19.733,11.98976518]
[1693918561171,83.644,19.75,19.733,11.98976518]
[1693918561671,55.0,19.749,19.733,11.98976518]
[1693918563076,75.746,19.75,19.733,11.98976518]
[1693918563862,83.644,19.75,19.733,11.98976518]
[1693918564071,75.746,19.75,19.733,11.98976518]
[1693918564375,83.645,19.75,19.733,11.98976518]
[1693918564674,62.899,19.749,19.733,11.98976518]
[1693918565371,55.0,19.749,19.733,11.98976518]
[1693918565972,7.897,19.752,19.733,11.98976518]
[1693918567558,83.643,19.752,19.733,11.98976518]
[1693918567960,55.0,19.751,19.733,11.98976518]
[1693918569375,62.898,19.751,19.733,11.98976518]
[1693918569996,31.27,19.75,19.733,11.98976518]
[1693918570168,31.27,19.75,19.725,193.8514]
[1693918570169,7.9,19.745,19.727,25.547]
[1693918570564,55.0,19.744,19.728,7.907]
[1693918570768,7.901,19.743,19.728,7.907]
[1693918570967,55.0,19.742,19.728,7.907]
[1693918571272,62.902,19.742,19.728,7.907]
[1693918571974,94.3188,19.741,19.728,7.907]
[1693918572171,62.902,19.74,19.728,7.907]
[1693918572372,94.172,19.74,19.719,25.558]
[1693918572673,94.172,19.74,19.723,7.909]
[1693918572875,55.0,19.74,19.724,3.93913908]
[1693918573175,55.0,19.74,19.728,7.907]
[1693918574177,7.899,19.748,19.728,7.907]
[1693918574367,40.8235294,19.748,19.735,7.904]
[1693918574675,39.168,19.75,19.735,7.904]
[1693918574981,31.27,19.744,19.735,7.904]
[1693918577375,55.0,19.743,19.735,7.904]
[1693918577766,31.27,19.744,19.735,7.904]
[1693918579982,55.0,19.743,19.735,7.904]
[1693918580379,31.27,19.744,19.735,7.904]
[1693918580576,31.27,19.75,19.735,7.904]
[1693918580772,55.0,19.749,19.735,7.904]
[1693918580972,86.27,19.75,19.735,7.904]
[1693918581682,142.019,19.75,19.735,7.904]
[1693918581881,110.749,19.75,19.735,7.904]
[1693918582568,55.749,19.75,19.735,7.904]
[1693918583586,63.648,19.75,19.735,7.904]